fUSD/lending_fUSD_20240331
["ID","MTS","AMOUNT","RATE_DAILY","PERIOD"]
[321104504,1711895466600,-575.74354319,0.00055616,120]
[321104505,1711895466609,-673.62,0.00055616,120]
[321104506,1711895466618,-168.44,0.00055616,120]
[321104507,1711895466628,-500.0,0.00055616,120]
[321104508,1711895466638,-157.77,0.00055616,120]
[321104509,1711895466647,-500.0,0.00055616,120]
[321104510,1711895466656,-500.0,0.00055616,120]
[321104511,1711895466665,-615.43,0.00055616,120]
[321104512,1711895466675,-500.0,0.00055616,120]
[321104513,1711895466684,-500.0,0.00055616,120]
[321104514,1711895466694,-500.0,0.00055616,120]
[321104515,1711895466704,-500.0,0.00055616,120]
[321104516,1711895466713,-500.0,0.00055616,120]
[321104517,1711895466722,-500.0,0.00055616,120]
[321104518,1711895466733,-500.0,0.00055616,120]
[321104519,1711895466742,-500.0,0.00055616,120]
[321104520,1711895466751,-500.0,0.00055616,120]
[321104521,1711895466761,-500.0,0.00055616,120]
[321104522,1711895466771,-500.0,0.00055616,120]
[321104523,1711895466780,-647.81,0.00055616,120]
[321104524,1711895466789,-500.0,0.00055616,120]
[321104525,1711895466799,-500.0,0.00055616,120]
[321104526,1711895466808,-500.0,0.00055616,120]
[321104527,1711895466818,-383.43552923,0.00055616,120]
[321104528,1711895467175,-707.9503628,0.00042799,4]
[321104529,1711895467186,-68.23156115,0.000509,120]
[321104530,1711895467197,-90.29165458,0.000509,120]
[321104531,1711895467206,-1381.35613307,0.0005259,2]
[321104532,1711895467216,-187.34523837,0.00054793,4]
[321104533,1711895467225,-1000.0,0.00054793,4]
[321104534,1711895467234,-500.0,0.00054794,120]
[321104535,1711895467244,-500.0,0.00054794,120]
[321104536,1711895467254,-536.15132573,0.00054794,120]
[321104537,1711895467264,-500.0,0.00054794,120]
[321104538,1711895467274,-500.0,0.00054794,120]
[321104539,1711895467283,-500.0,0.00054795,120]
[321104540,1711895467293,-500.0,0.00054795,120]
[321104541,1711895467303,-500.0,0.00054795,120]
[321104542,1711895467313,-500.0,0.00054795,120]
[321104543,1711895467322,-500.0,0.00054795,120]
[321104544,1711895467332,-500.0,0.00054795,120]
[321104545,1711895467342,-500.0,0.00054795,120]
[321104546,1711895467351,-500.0,0.00055068,120]
[321104547,1711895467360,-500.0,0.00055068,120]
[321104548,1711895467370,-500.0,0.00055068,120]
[321104549,1711895467379,-248.95726004,0.00055068,120]
[321104550,1711895467389,-500.0,0.00055342,120]
[321104551,1711895467399,-500.0,0.00055342,120]
[321104552,1711895467409,-500.0,0.00055342,120]
[321104553,1711895467418,-116.56447077,0.00055616,120]
[321104554,1711895467427,-500.0,0.00055616,120]
[321104555,1711895467438,-500.0,0.00055616,120]
[321104556,1711895467448,-560.28,0.00055616,120]
[321104557,1711895467457,-500.0,0.00055616,120]
[321104558,1711895467467,-500.0,0.00055616,120]
[321104559,1711895467476,-500.0,0.00055616,120]
[321104560,1711895467485,-305.25,0.00055616,120]
[321104561,1711895467495,-269.68,0.00055616,120]
[321104562,1711895467504,-559.73,0.00055616,120]
[321104563,1711895467514,-500.0,0.00055616,120]
[321104564,1711895467524,-500.0,0.00055616,120]
[321104565,1711895467533,-160.1,0.00055616,120]
[321104566,1711895467543,-500.0,0.00055616,120]
[321104567,1711895467552,-500.0,0.00055616,120]
[321104568,1711895467561,-500.0,0.00055616,120]
[321104569,1711895467570,-500.0,0.00055616,120]
[321104570,1711895467579,-387.50391041,0.00055616,120]
[321104571,1711895467637,-500.0,0.00054794,120]
[321104572,1711895467646,-112.49608959,0.00055616,120]
[321104573,1711895467655,-500.0,0.00055616,120]
[321104574,1711895467664,-500.0,0.00055616,120]
[321104575,1711895467673,-347.95,0.00055616,120]
[321104576,1711895467682,-578.15607872,0.00055616,120]
[321104577,1711895467691,-443.18762953,0.00055616,120]
[321104578,1711895467703,-56.81237047,0.00055616,120]
[321104579,1711895467713,-500.0,0.00055616,120]
[321104580,1711895467722,-500.0,0.00055616,120]
[321104581,1711895467731,-467.00520336,0.00055616,120]
[321104582,1711895467747,-500.0,0.00054795,120]
[321104583,1711895467756,-32.99479664,0.00055616,120]
[321104584,1711895467765,-297.84617801,0.00055616,30]
[321104585,1711895467778,-202.15382199,0.00055616,30]
[321104586,1711895467788,-500.0,0.00055616,120]
[321104587,1711895467798,-500.0,0.00055616,120]
[321104588,1711895467808,-500.0,0.00055616,120]
[321104589,1711895467817,-500.0,0.00055616,120]
[321104590,1711895467826,-144.89144351,0.00055616,120]
[321104591,1711895596618,222.16925775,0.00024,2]
[321104594,1711895609706,232.16,0.00044764,120]
[321104596,1711895826120,-915.07761018,0.00033335,4]
[321104597,1711895826145,-155.0,0.00033336,4]
[321104598,1711895826170,-571.35180546,0.00033336,4]
[321104599,1711895826193,-1000.0,0.00033336,4]
[321104600,1711895826217,-542.65666433,0.00033336,4]
[321104601,1711895826241,-1401.31047226,0.00033337,4]
[321104602,1711895826265,-158.41351975,0.0003334,2]
[321104603,1711895826289,-4399.1549,0.0003334,2]
[321104604,1711895826314,-1810.82040502,0.0003344,4]
[321104605,1711895831926,-158.41351975,0.00036009,2]
[321104606,1711895831950,-400.0,0.00038676,3]
[321104607,1711895831975,-150.0,0.00038676,5]
[321104608,1711895831999,-5920.73472081,0.00038677,4]
[321104609,1711895832023,-310.0,0.00038678,4]
[321104610,1711895832047,-158.41351975,0.00038679,2]
[321104611,1711895832071,-1235.44561692,0.00039549,4]
[321104612,1711895832095,-3816.4065,0.00039551,2]
[321104613,1711895832121,-577.81,0.00039873,2]
[321104614,1711895837050,-1000.0,0.00040305,2]
[321104615,1711895837078,-156.17,0.00041115,15]
[321104616,1711895837103,-158.51,0.00041276,2]
[321104617,1711895837129,-158.41351975,0.00041348,2]
[321104618,1711895837155,-250.0,0.00041428,112]
[321104619,1711895837181,-577.81,0.00042137,2]
[321104620,1711895837205,-500.0,0.0004222,8]
[321104621,1711895837230,-229.23257379,0.0004222,8]
[321104622,1711895837257,-1985.74,0.00042255,2]
[321104623,1711895837282,-1050.0,0.00042523,4]
[321104624,1711895837305,-155.0,0.00042526,90]
[321104625,1711895837328,-210.0,0.00042543,5]
[321104626,1711895837352,-155.81,0.000428,4]
[321104627,1711895837377,-18413.31390646,0.00043457,2]
[321104628,1711895842682,-458.36,0.000428,4]
[321104629,1711895842709,-458.36,0.000428,4]
[321104630,1711895842736,-458.36,0.000428,4]
[321104631,1711895842762,-458.36,0.000428,4]
[321104632,1711895842787,-458.36,0.000428,4]
[321104633,1711895842811,-458.36,0.000428,4]
[321104634,1711895842837,-458.36,0.000428,4]
[321104635,1711895842862,-458.36,0.000428,4]
[321104636,1711895842887,-458.36,0.000428,4]
[321104637,1711895842912,-458.36,0.000428,4]
[321104638,1711895842937,-458.36,0.000428,4]
[321104639,1711895842962,-458.36,0.000428,4]
[321104640,1711895842992,-458.36,0.000428,4]
[321104641,1711895843019,-458.36,0.000428,4]
[321104642,1711895843045,-458.36,0.000428,4]
[321104643,1711895843070,-458.36,0.000428,4]
[321104644,1711895843097,-458.36,0.000428,4]
[321104645,1711895843124,-458.36,0.000428,4]
[321104646,1711895843150,-458.36,0.000428,4]
[321104647,1711895843175,-458.36,0.000428,4]
[321104648,1711895843199,-1601.49768259,0.00043455,4]
[321104649,1711895843224,-156.64531442,0.00043455,4]
[321104650,1711895843248,-1000.0,0.00043455,4]
[321104651,1711895843272,-407.14808268,0.00043456,4]
[321104652,1711895843296,-12667.50892031,0.00043457,2]
[321104653,1711895847590,-277.63052791,0.00043433,4]
[321104654,1711895847615,-474.10362959,0.00043455,4]
[321104655,1711895847640,-24248.2658425,0.00043457,2]
[321104656,1711895851534,-155.0,0.00042526,90]
[321104657,1711895851560,-24845.0,0.00043457,2]
[321104658,1711895920086,5000.0,0.00044802,120]
[321104674,1711896086202,350.0,0.00033,3]
[321104675,1711896087299,400.0,0.00035,3]
[321104676,1711896088395,450.0,0.00037,3]
[321104677,1711896089511,500.0,0.00039,3]
[321104679,1711896126683,483.40068454,0.00039,2]
[321104680,1711896130732,240.4236211,0.00039,2]
[321104681,1711896132091,489.43334624,0.00039,4]
[321104682,1711896133453,397.25888931,0.00039,2]
[321104683,1711896133767,8962.25958158,0.00039,4]
[321104691,1711896373681,-1000.0,0.00037049,4]
[321104692,1711896373705,-155.0,0.0003705,60]
[321104693,1711896373729,-12347.22616644,0.00038899,2]
[321104694,1711896373755,-2918.87337012,0.00038989,2]
[321104695,1711896373778,-8578.90046344,0.00038999,2]
[321104696,1711896378287,-25000.0,0.00038999,2]
[321104697,1711896383590,-25000.0,0.00038999,2]
[321104698,1711896385875,-25000.0,0.00038999,2]
[321104716,1711896484397,150.0,0.0002,2]
[321104717,1711896484417,150.0,0.0002,2]
[321104718,1711896484438,150.0,0.0002,2]
[321104719,1711896484458,150.0,0.0002,2]
[321104720,1711896484479,150.0,0.0002,2]
[321104721,1711896484499,150.0,0.0002,2]
[321104722,1711896484520,150.0,0.0002,2]
[321104723,1711896484540,150.0,0.0002,2]
[321104724,1711896484566,245.69720265,0.0002,2]
[321104725,1711896485462,-1000.0,0.00037048,4]
[321104726,1711896485496,-155.0,0.00037049,60]
[321104727,1711896485522,-406.41408574,0.00038896,4]
[321104728,1711896485547,-165.28377532,0.00038897,4]
[321104729,1711896485572,-150.0,0.00038897,5]
[321104730,1711896485597,-23123.30213894,0.00038898,2]
[321104731,1711896489563,-25000.0,0.00038898,2]
[321104732,1711896493909,-450.46542269,0.00038897,4]
[321104733,1711896493935,-24549.53457731,0.00038898,2]
[321104734,1711896497470,-1000.0,0.00038897,4]
[321104735,1711896497494,-24000.0,0.00038898,2]
[321104740,1711896609105,-1000.0,0.00036952,4]
[321104741,1711896609129,-155.0,0.00036953,60]
[321104742,1711896609153,-545.71176212,0.00038897,4]
[321104743,1711896609176,-165.98241608,0.00038897,4]
[321104744,1711896609201,-8861.93741295,0.00038897,4]
[321104745,1711896609226,-14271.36840885,0.00038898,2]
[321104746,1711896612262,-25000.0,0.00038898,2]
[321104747,1711896616742,-14258.6352652,0.00038898,2]
[321104748,1711896616766,-433.37349608,0.00038898,4]
[321104749,1711896616790,-10307.99123872,0.00038898,2]
[321104750,1711896620310,-25000.0,0.00038898,2]
[321104795,1711896632510,-155.0,0.00036953,60]
[321104797,1711896632520,-124.99219,0.00038897,4]
[321104799,1711896632531,-875.00781,0.00038897,4]
[321104800,1711896632540,-203.45219,0.00038898,2]
[321104802,1711896632552,-1259.083791,0.00038898,2]
[321104805,1711896632564,-6910.293,0.00038898,2]
[321104807,1711896632578,-534.19685754,0.00038898,2]
[321104809,1711896632589,-395.16,0.00038898,2]
[321104812,1711896632628,-12394.17446308,0.00038898,2]
[321104813,1711896632637,-489.43334624,0.00038898,4]
[321104814,1711896632647,-19804.25917416,0.00038898,4]
[321104818,1711896638780,-2064.5286776,0.00038897,2]
[321104819,1711896638838,-2914.61469949,0.00038897,2]
[321104820,1711896638920,-150.0,0.00038897,2]
[321104821,1711896638931,-48567.46590675,0.00038897,2]
[321104822,1711896638943,-377.11928276,0.00038897,2]
[321104823,1711896638955,-531.65751596,0.00038897,2]
[321104824,1711896638967,-485.6736453,0.00038897,2]
[321104825,1711896638979,-2761.75648125,0.00038897,2]
[321104826,1711896639002,-1280.6235992,0.00038897,2]
[321104827,1711896639013,-7917.22749681,0.00038897,2]
[321104828,1711896639053,-24292.95707029,0.00038897,2]
[321104844,1711896640415,-491.8419079,0.00038897,2]
[321104870,1711896643504,-275.60400001,0.00038897,2]
[321104871,1711896643698,-2342.52,0.00038897,2]
[321104872,1711896643709,-7673.13088768,0.00038897,2]
[321104873,1711896644667,-225.76326527,0.00038897,2]
[321104908,1711896646381,-404.20345887,0.00038897,2]
[321104913,1711896646555,-1919.710128,0.00038897,2]
[321104914,1711896646618,-45526.44236716,0.00038897,2]
[321104915,1711896646628,-223.21666492,0.00038897,4]
[321104916,1711896646639,-6524.254449,0.00038898,4]
[321104917,1711896646649,-397.98900084,0.00038898,4]
[321104918,1711896646659,-17490.3521,0.00038899,2]
[321104919,1711896646670,-254.9227,0.00038899,2]
[321104920,1711896646680,-38732.75174803,0.00038899,2]
[321104921,1711896646689,-530.13033909,0.00039,2]
[321104922,1711896646699,-239.9982106,0.00039,2]
[321104923,1711896646709,-351.92495842,0.00039,2]
[321104924,1711896646720,-266.37468078,0.00040403,5]
[321104925,1711896646729,-300.0,0.0004227,2]
[321104926,1711896646739,-300.0,0.0004227,2]
[321104927,1711896646749,-300.0,0.0004227,2]
[321104928,1711896646759,-300.0,0.0004227,2]
[321104929,1711896646768,-300.0,0.0004227,2]
[321104930,1711896646778,-303.58520191,0.0004227,2]
[321104931,1711896646788,-2342.52,0.0004227,2]
[321104932,1711896646798,-366.73,0.000428,4]
[321104933,1711896646808,-366.73,0.000428,4]
[321104934,1711896646818,-366.73,0.000428,4]
[321104935,1711896646828,-366.73,0.000428,4]
[321104936,1711896646838,-366.73,0.000428,4]
[321104937,1711896646848,-366.73,0.000428,4]
[321104938,1711896646858,-366.73,0.000428,4]
[321104939,1711896646868,-366.73,0.000428,4]
[321104940,1711896646878,-366.73,0.000428,4]
[321104941,1711896646888,-366.73,0.000428,4]
[321104942,1711896646897,-366.73,0.000428,4]
[321104943,1711896646908,-366.73,0.000428,4]
[321104944,1711896646918,-366.73,0.000428,4]
[321104945,1711896646928,-366.73,0.000428,4]
[321104946,1711896646938,-366.73,0.000428,4]
[321104947,1711896646947,-366.73,0.000428,4]
[321104948,1711896646957,-366.73,0.000428,4]
[321104949,1711896646967,-366.73,0.000428,4]
[321104950,1711896646976,-366.73,0.000428,4]
[321104951,1711896646986,-366.73,0.000428,4]
[321104952,1711896646995,-7444.46,0.000428,10]
[321104953,1711896647005,-158.41351975,0.00043156,2]
[321104954,1711896647015,-499.99,0.00043256,2]
[321104955,1711896647025,-5388.5848,0.00043356,2]
[321104956,1711896647035,-2615.31391677,0.00043456,2]
[321104957,1711896647045,-400.33256626,0.00043456,4]
[321104958,1711896647054,-520.02,0.00043467,2]
[321104959,1711896647064,-3350.83,0.00044401,2]
[321104960,1711896647074,-150.99,0.00044401,10]
[321104961,1711896647083,-247.01157723,0.00044587,2]
[321104962,1711896647093,-1031.61061191,0.00044587,4]
[321104963,1711896647104,-1611.1041,0.00044663,2]
[321104964,1711896647114,-1000.0,0.00044663,2]
[321104965,1711896647124,-794.6139,0.00044663,2]
[321104966,1711896647134,-2500.0,0.00044664,2]
[321104967,1711896647144,-272.20542962,0.00044761,4]
[321104968,1711896647155,-188.04654652,0.00044762,4]
[321104969,1711896647165,-12465.00847816,0.00044764,4]
[321104970,1711896647174,-1751.24167307,0.00044764,4]
[321104971,1711896647185,-2417.08,0.00044837,2]
[321104972,1711896647194,-155.0,0.00044901,2]
[321104973,1711896647204,-956.434462,0.00044901,2]
[321104974,1711896647214,-667.54,0.00044919,2]
[321104975,1711896647224,-500.0,0.00044983,2]
[321104976,1711896647235,-5000.0,0.00044986,4]
[321104977,1711896647247,-1468.86040058,0.00045,120]
[321104978,1711896647257,-328.07527769,0.00045,4]
[321104979,1711896647267,-159.13,0.00045048,2]
[321104980,1711896647277,-200.0,0.000451,2]
[321104981,1711896647287,-179.0,0.00045104,2]
[321104982,1711896647297,-250.0,0.00045249,120]
[321104983,1711896647307,-182.91,0.00045287,120]
[321104984,1711896647318,-1000.0,0.00045294,2]
[321104985,1711896647328,-7026.37,0.00045385,2]
[321104986,1711896647337,-186.80698576,0.00045403,120]
[321104987,1711896647347,-158.51,0.00045404,2]
[321104988,1711896647356,-352.43,0.0004543,2]
[321104989,1711896647366,-1381.38,0.00045696,2]
[321104990,1711896647375,-520.02,0.00045731,2]
[321104991,1711896647385,-158.41351975,0.00046041,2]
[321104992,1711896647395,-366.73,0.00047,5]
[321104993,1711896647404,-366.73,0.00047,5]
[321104994,1711896647414,-366.73,0.00047,5]
[321104995,1711896647423,-366.73,0.00047,5]
[321104996,1711896647433,-366.73,0.00047,5]
[321104997,1711896647443,-366.73,0.00047,5]
[321104998,1711896647453,-366.73,0.00047,5]
[321104999,1711896647462,-366.73,0.00047,5]
[321105000,1711896647472,-366.73,0.00047,5]
[321105001,1711896647481,-366.73,0.00047,5]
[321105002,1711896647491,-366.73,0.00047,5]
[321105003,1711896647501,-366.73,0.00047,5]
[321105004,1711896647511,-366.73,0.00047,5]
[321105005,1711896647522,-366.73,0.00047,5]
[321105006,1711896647532,-366.73,0.00047,5]
[321105007,1711896647542,-366.73,0.00047,5]
[321105008,1711896647552,-366.73,0.00047,5]
[321105009,1711896647562,-366.73,0.00047,5]
[321105010,1711896647572,-366.73,0.00047,5]
[321105011,1711896647581,-366.73,0.00047,5]
[321105012,1711896647591,-196.03753691,0.00047608,4]
[321105013,1711896647600,-520.02,0.00047995,2]
[321105014,1711896647610,-352.43,0.0004817,2]
[321105015,1711896647620,-158.41351975,0.00048925,2]
[321105016,1711896647629,-1200.0,0.00049,4]
[321105017,1711896647639,-696.13981054,0.00049,30]
[321105018,1711896647648,-712.35619868,0.00049312,4]
[321105019,1711896647659,-1000.0,0.00049315,60]
[321105020,1711896647668,-214.39458142,0.0004938,21]
[321105021,1711896647678,-89305.9395,0.00049389,2]
[321105022,1711896647687,-559.62274197,0.00049488,4]
[321105023,1711896647697,-4178.44840539,0.00049488,4]
[321105024,1711896647706,-222.6705156,0.00049488,4]
[321105025,1711896647716,-646.1671822,0.00049488,4]
[321105026,1711896647725,-349.67104766,0.00049488,4]
[321105027,1711896647735,-155.40458974,0.00049488,4]
[321105028,1711896647744,-155.0,0.00049488,2]
[321105029,1711896647754,-175.14145843,0.00049489,4]
[321105030,1711896647764,-3486.05077713,0.00049489,4]
[321105031,1711896647774,-26347.40328141,0.0004949,10]
[321105032,1711896647783,-158.51,0.00049532,2]
[321105033,1711896647792,-180.0,0.00049867,120]
[321105034,1711896647802,-2844.03657921,0.0005,10]
[321105035,1711896647811,-27063.55526501,0.0005,4]
[321105036,1711896647821,-1002.34,0.0005,2]
[321105037,1711896647831,-1000.0,0.00050136,64]
[321105038,1711896647840,-170.18,0.0005021,2]
[321105039,1711896647849,-520.02,0.00050259,2]
[321105040,1711896647858,-352.43,0.00050909,2]
[321105041,1711896647868,-1000.0,0.00050955,120]
[321105042,1711896647878,-1000.0,0.00050958,68]
[321105043,1711896647887,-1002.34,0.00051155,2]
[321105044,1711896647898,-366.73,0.000512,6]
[321105045,1711896647908,-366.73,0.000512,6]
[321105046,1711896647918,-366.73,0.000512,6]
[321105047,1711896647928,-366.73,0.000512,6]
[321105048,1711896647938,-366.73,0.000512,6]
[321105049,1711896647947,-366.73,0.000512,6]
[321105050,1711896647958,-366.73,0.000512,6]
[321105051,1711896647968,-366.73,0.000512,6]
[321105052,1711896647977,-366.73,0.000512,6]
[321105053,1711896647987,-366.73,0.000512,6]
[321105054,1711896647997,-366.73,0.000512,6]
[321105055,1711896648006,-366.73,0.000512,6]
[321105056,1711896648016,-366.73,0.000512,6]
[321105057,1711896648026,-366.73,0.000512,6]
[321105058,1711896648035,-366.73,0.000512,6]
[321105059,1711896648045,-366.73,0.000512,6]
[321105060,1711896648054,-366.73,0.000512,6]
[321105061,1711896648064,-366.73,0.000512,6]
[321105062,1711896648074,-366.73,0.000512,6]
[321105063,1711896648083,-366.73,0.000512,6]
[321105064,1711896648092,-1000.0,0.0005178,72]
[321105065,1711896648102,-158.41351975,0.0005181,2]
[321105066,1711896648111,-1500.0,0.00052,2]
[321105067,1711896648121,-1406.48,0.00052,2]
[321105068,1711896648131,-1000.0,0.00052,2]
[321105069,1711896648140,-1002.34,0.0005231,2]
[321105070,1711896648150,-584.16566967,0.00052502,2]
[321105071,1711896648160,-520.02,0.00052523,2]
[321105072,1711896648169,-1000.0,0.00052602,120]
[321105073,1711896648179,-155.0,0.00052634,4]
[321105074,1711896648188,-159.13,0.00052669,120]
[321105075,1711896648198,-152.49542727,0.00053118,60]
[321105076,1711896648208,-150.0,0.00053424,2]
[321105077,1711896648217,-1000.0,0.00053424,120]
[321105078,1711896648227,-1002.34,0.00053465,2]
[321105079,1711896648238,-1985.74,0.00053488,120]
[321105080,1711896648251,-158.51,0.00053659,2]
[321105081,1711896648261,-166.36,0.0005369,2]
[321105082,1711896648272,-156.36450137,0.00053695,4]
[321105083,1711896648282,-155.63,0.00053749,4]
[321105084,1711896648292,-387.14158954,0.0005375,30]
[321105085,1711896648302,-150.68,0.0005389,120]
[321105086,1711896648312,-176398.6479,0.000539,2]
[321105087,1711896648323,-1321.044,0.000539,2]
[321105088,1711896648333,-1500.0,0.000539,19]
[321105089,1711896648342,-1135.5135334,0.00053932,4]
[321105090,1711896648352,-406.48055709,0.00053948,4]
[321105091,1711896648362,-150.0,0.00053972,35]
[321105092,1711896648372,-150.68,0.0005399,120]
[321105093,1711896648381,-321.62599482,0.00053997,2]
[321105094,1711896648391,-253838.70636207,0.00054,2]
[321105095,1711896648401,-1500.0,0.00054,30]
[321105096,1711896648410,-1500.0,0.00054,30]
[321105097,1711896648420,-1500.0,0.00054,30]
[321105098,1711896648430,-1500.0,0.00054,2]
[321105099,1711896648439,-1500.0,0.00054,2]
[321105100,1711896648449,-963.0,0.00054052,120]
[321105101,1711896648459,-702.62092206,0.00054052,120]
[321105102,1711896648597,-680.37907794,0.00054052,120]
[321105103,1711896648607,-458.0,0.00054052,120]
[321105104,1711896648617,-536.688,0.00054052,120]
[321105105,1711896648627,-1226.0,0.00054052,120]
[321105106,1711896648636,-587.85,0.00054052,120]
[321105107,1711896648645,-396.0,0.00054052,120]
[321105108,1711896648654,-1461.0,0.00054052,120]
[321105109,1711896648664,-2985.0,0.00054052,120]
[321105110,1711896648673,-1137.0,0.00054052,120]
[321105111,1711896648683,-150.0,0.00054052,120]
[321105112,1711896648692,-2427.0,0.00054052,120]
[321105113,1711896648702,-1629.0,0.00054052,120]
[321105114,1711896648711,-150.0,0.00054052,120]
[321105115,1711896648721,-213.0,0.00054052,2]
[321105116,1711896648730,-1385.971,0.00054052,120]
[321105117,1711896648740,-150.0,0.00054052,120]
[321105118,1711896648749,-150.757,0.00054052,120]
[321105119,1711896648758,-150.0,0.00054052,2]
[321105120,1711896648767,-393.643,0.00054052,120]
[321105121,1711896648777,-150.4,0.00054052,120]
[321105122,1711896648787,-150.0,0.00054052,2]
[321105123,1711896648797,-1500.0,0.000542,2]
[321105124,1711896648806,-251.71,0.00054246,120]
[321105125,1711896648816,-2000.0,0.0005452,120]
[321105126,1711896648825,-1002.34,0.0005462,2]
[321105127,1711896648835,-7500.0,0.00054694,3]
[321105128,1711896648845,-158.41351975,0.00054694,2]
[321105129,1711896648854,-153.15220149,0.00054694,62]
[321105130,1711896648863,-1114.64007547,0.00054742,4]
[321105131,1711896648875,-150.68,0.00054779,120]
[321105132,1711896648884,-520.02,0.00054787,2]
[321105133,1711896648894,-205.59226142,0.00054789,4]
[321105134,1711896648903,-849.35615532,0.00054789,2]
[321105135,1711896648913,-4820.41346061,0.00054789,4]
[321105136,1711896648923,-262.16349394,0.00054789,4]
[321105137,1711896648933,-277.47847021,0.00054789,4]
[321105138,1711896648943,-758.08220157,0.00054789,4]
[321105139,1711896648952,-2138.31720221,0.00054789,4]
[321105140,1711896648963,-2634.98330825,0.00054789,4]
[321105141,1711896648972,-155.0,0.0005479,4]
[321105142,1711896648982,-3846.71319902,0.0005479,30]
[321105143,1711896648991,-202.96318192,0.0005479,4]
[321105144,1711896649000,-11399.10947925,0.0005479,4]
[321105145,1711896649010,-161.42744966,0.0005479,4]
[321105146,1711896649019,-213.35092335,0.00054791,4]
[321105147,1711896649028,-216.78100935,0.00054791,4]
[321105148,1711896649038,-155.93236491,0.00054791,4]
[321105149,1711896649048,-156.56839147,0.00054791,2]
[321105150,1711896649057,-1049.17150319,0.00054791,4]
[321105151,1711896649066,-155.0,0.00054791,4]
[321105152,1711896649075,-400.0,0.00054791,2]
[321105153,1711896649085,-263.54100327,0.00054791,4]
[321105154,1711896649094,-3066.08279134,0.00054791,4]
[321105155,1711896649104,-535.81433146,0.00054792,4]
[321105156,1711896649113,-3365.7567162,0.00054792,4]
[321105157,1711896649123,-1891.70334585,0.00054792,4]
[321105158,1711896649133,-517.69766086,0.00054794,120]
[321105159,1711896649142,-319.78443847,0.00054794,2]
[321105160,1711896649152,-477.93233567,0.00054794,60]
[321105161,1711896649164,-23.4366877,0.00054794,60]
[321105162,1711896649174,-502.49806445,0.00054794,120]
[321105163,1711896649185,-503.9652765,0.00054794,120]
[321105164,1711896649195,-518.08532734,0.00054794,120]
[321105165,1711896649204,-508.4752927,0.00054794,120]
[321105166,1711896649213,-246.60292308,0.00054794,120]
[321105167,1711896649222,-503.32639609,0.00054794,120]
[321105168,1711896649231,-500.89791331,0.00054794,120]
[321105169,1711896649243,-441.45269536,0.00054794,120]
[321105170,1711896649257,-276.36881663,0.00054794,120]
[321105171,1711896649266,-500.0,0.00054794,120]
[321105172,1711896649276,-501.67458611,0.00054794,120]
[321105173,1711896649285,-500.89631606,0.00054794,120]
[321105174,1711896649294,-503.57094918,0.00054794,120]
[321105175,1711896649304,-508.69013579,0.00054794,120]
[321105176,1711896649312,-422.88803452,0.00054794,120]
[321105177,1711896649321,-519.49288858,0.00054794,120]
[321105178,1711896649330,-500.0,0.00054794,2]
[321105179,1711896649339,-434.45788899,0.00054794,2]
[321105180,1711896649348,-502.44754781,0.00054794,120]
[321105181,1711896649357,-506.21538329,0.00054794,120]
[321105182,1711896649367,-502.96134594,0.00054794,120]
[321105183,1711896649376,-500.0,0.00054794,2]
[321105184,1711896649385,-510.72273075,0.00054794,120]